Cogmind - Beta 14 @@@ ROGUE MODE // 2025.05.04 @ 19:20:36 Player: Rotpup_ Result: Destroyed by Y-54 Guardian with Gatling Laser Performance ------------- Evolutions (3) 1500 Regions Visited (6) 1200 Robots Destroyed (21) 105 Value Destroyed (639) 639 Prototype IDs (26) 520 Alien Tech Used (0) 0 Bonus (300) 300 TOTAL SCORE: 4264 Bonus ------- Aligned with FarCom 300 Cogmind --------- Core Integrity 0/700 Matter 255/300 Energy 88/100 System Corruption 6% Temperature Cool (6) Movement Walking (130) Location -7/Factory Parts ------- > --- POWER (1) -------- (None) > --- PROPULSION (4) --- Improved Titanium Leg > --- UTILITY (6) ------ Improved Signal Interpreter > --- WEAPON (2) ------- Grenade Launcher Grenade Launcher > --- INVENTORY (5) ---- Autogun Autogun Datajack Datajack Remote Datajack Peak State ------------ > --- POWER ------------ Light Nuclear Core > --- PROPULSION ------- Flying Fortress v7 > --- UTILITY ---------- Small Storage Unit Small Storage Unit Medium Storage Unit Improved Signal Interpreter Reaction Control System High-powered Tractor Beam > --- WEAPON ----------- Autogun Remote Datajack > --- INVENTORY -------- Ion Engine Xenon Bombardment Thruster Improved Cesium-ion Thruster Autogun Grenade Launcher Grenade Launcher Datajack Datajack Remote Datajack [Rating: 55] Favorites ----------- Power Ion Engine Engine Ion Engine Power Core Light Nuclear Core Propulsion Light Treads Treads Light Treads Leg Aluminum Leg Wheel Wheel Flight Unit Flying Fortress v7 Utility Small Storage Unit Device High-powered Tractor Beam Storage Small Storage Unit Processor Improved Signal Interpreter Weapon Light Assault Rifle Energy Gun EM Pulse Gun Ballistic Gun Light Assault Rifle Launcher Grenade Launcher Special Weapon Remote Datajack Impact Weapon Power Maul Special Melee Weapon Datajack Build | -11 -10 -10 -10 -9 -8 -7 ------- Run | Yrd Mat Min Exi Min Mat Fac Slots Evolved 6 | . . . . . 4 2 Power . | . . . . . . . Propulsion 2 | . . . . . 2 . Utility 4 | . . . . . 2 2 Weapon . | . . . . . . . Parts Attached 51 | 9 . 1 4 7 9 21 Power 6 | 2 . . 1 . 2 1 Engine 5 | 2 . . 1 . 1 1 Core 1 | . . . . . 1 . Reactor . | . . . . . . . Propulsion 14 | 3 . . . 2 1 8 Treads 2 | 2 . . . . . . Leg 3 | . . . . 2 . 1 Wheel 1 | 1 . . . . . . Hover . | . . . . . . . Flight 8 | . . . . . 1 7 Utility 12 | 2 . . 1 . 5 4 Device 3 | 1 . . . . 1 1 Storage 8 | 1 . . 1 . 3 3 Processor 1 | . . . . . 1 . Hackware . | . . . . . . . Protection . | . . . . . . . Artifact . | . . . . . . . Weapon 19 | 2 . 1 2 5 1 8 Energy Gun 2 | 1 . . . . . 1 Energy Cannon . | . . . . . . . Ballistic Gun 8 | 1 . 1 1 3 1 1 Ballistic Cannon . | . . . . . . . Launcher 4 | . . . . 2 . 2 Special Weapon 2 | . . . . . . 2 Impact Weapon 1 | . . . . . . 1 Slashing Weapon . | . . . . . . . Piercing Weapon . | . . . . . . . Special Melee Weapon 2 | . . . 1 . . 1 Unidentified Prototypes 1 | . . . . . . 1 Parts Lost 18 | . 3 . . 1 . 14 Power 2 | . . . . . . 2 Propulsion 7 | . 1 . . 1 . 5 Utility 5 | . 1 . . . . 4 Weapon 4 | . 1 . . . . 3 Highest Loss Streak 10 | . 2 . . 1 . 10 To Critical Strikes . | . . . . . . . Average Slot Usage (%) 72 | . 90 71 71 83 69 63 Engine 9 | . 14 14 14 14 5 1 Core 1 | . . . . . 3 4 Treads 7 | . 26 14 14 2 . . Leg 1 | . . . . 9 . 1 Flight 2 | . . . . . 9 7 Device 4 | . 12 . . . 8 9 Storage 17 | . 14 14 14 28 18 16 Processor 2 | . . . . . 7 7 Ballistic Gun 18 | . 14 28 27 23 18 5 Peak Build Rating 55 | 7 7 5 9 11 47 55 Average Rating 17 | 4 6 5 5 8 44 36 On Entrance 11 | . 7 4 5 9 11 47 Naked Turns . | . . . . . . . Heaviest Build 52 | 14 14 12 17 19 52 33 Greatest Support 50 | 40 40 20 20 20 50 50 Greatest Overweight (x) 5 | . . . . 5 1 4 Average Overweight (x) . | . . . . . . . Largest Inventory Capacity 20 | 8 8 8 8 8 20 10 Average Capacity 8 | 6 8 8 8 8 8 8 Most Carried 10 | 5 6 5 8 8 8 10 Average Carried 6 | 2 3 5 5 8 4 6 Final Capacity 8 | 8 8 8 8 8 8 5 Final Carried 8 | 2 6 5 8 8 5 5 Class Distribution -------------------- 97% | Mutant Dominant Class ---------------- Mutant | -10/Materials Mutant | -10/Mines Mutant | -10/Exiles Mutant | -9/Mines Mutant | -8/Materials Mutant | -7/Factory Resources | -11 -10 -10 -10 -9 -8 -7 ----------- Run | Yrd Mat Min Exi Min Mat Fac Matter Collected 1018 | 291 20 . . 195 133 379 Remotely 666 | 212 20 . . . 133 301 Salvage Created 860 | 79 130 . . 118 83 450 Parts 33 | 3 6 . . 4 6 14 Haulers Intercepted 3 | . . . . . 1 2 Recyclers Shooed . | . . . . . . . Parts Field Recycled . | . . . . . . . Retrieved Matter . | . . . . . . . Parts Self-Destructed . | . . . . . . . Prevented . | . . . . . . . Kills | -11 -10 -10 -10 -9 -8 -7 ------- Run | Yrd Mat Min Exi Min Mat Fac Combat Hostiles Destroyed 20 | . 2 . . 8 . 10 Melee 3 | . . . . . . 3 Guns 4 | . 2 . . 1 . 1 AOE 7 | . . . . 7 . . Classes Destroyed 9 | 1 2 . . 2 1 3 Worker 1 | . . . . 1 . . Hauler 3 | . . . . . 1 2 Recycler 1 | 1 . . . . . . Watcher 2 | . 1 . . . 1 . Swarmer 4 | . . . . . . 4 Grunt 8 | . 2 . . 2 . 4 Sentry 1 | . . . . . . 1 Programmer 1 | . . . . . . 1 Assembled 6 | . . . . 6 . . Best Kill Streak 4 | 1 1 . . 4 1 4 Combat Bots Only 4 | . 1 . . 3 . 4 Max Kills in Single Turn 1 | 1 1 . . 1 1 1 Gunslinging . | . . . . . . . Exploded 1 | . . . . 1 . . Melee 1 | . . . . . . 1 Uniques/NPCs Destroyed . | . . . . . . . Combat | -11 -10 -10 -10 -9 -8 -7 -------- Run | Yrd Mat Min Exi Min Mat Fac Hostile Shots Fired 274 | . 73 . . 23 . 178 Missed 88 | . 23 . . 6 . 59 Damage Taken 2498 | . 523 . . 285 . 1690 Core 897 | . 91 . . 100 . 706 Absorbed by Shields . | . . . . . . . Core Remaining (%) 74 | 100 . . . 23 100 . Volleys Fired 85 | 2 19 . . 14 9 41 Largest 2 | 2 2 . . 2 2 2 Hottest 69 | 60 60 . . 50 46 69 Shots Fired 122 | 4 24 . . 28 18 48 Gun 109 | 4 24 . . 20 18 43 Cannon . | . . . . . . . Launcher 10 | . . . . 8 . 2 Special 3 | . . . . . . 3 Kinetic 96 | 2 19 . . 20 18 37 Thermal 6 | . . . . . . 6 Explosive 10 | . . . . 8 . 2 Electromagnetic 7 | 2 5 . . . . . Robot Hit Streak 8 | 2 6 . . 8 5 5 Robot Miss Streak 3 | 1 1 . . 3 2 3 Penetration Max . | . . . . . . . Secondary Targets . | . . . . . . . Shots Hit Robots 95 | 2 18 . 1 15 10 49 Core Hits 42 | 1 8 . . 19 4 10 Critical Kills 1 | . . . . . . 1 Critical Parts Destroyed 5 | . . . . . . 5 Critical Strikes 6 | . . . . . . 6 Smash 6 | . . . . . . 6 Melee Attacks 35 | . . . 1 . . 34 Impact 34 | . . . . . . 34 Slashing . | . . . . . . . Piercing . | . . . . . . . Sneak Attacks 1 | . . . 1 . . . Combat Hostiles . | . . . . . . . Follow-up Attacks . | . . . . . . . Damage Inflicted 2043 | 25 163 . . 312 145 1398 Guns 825 | 25 163 . . 65 145 427 Cannons . | . . . . . . . Explosions 270 | . . . . 247 . 23 Melee 948 | . . . . . . 948 Ramming . | . . . . . . . Kinetic 730 | 10 128 . . 65 145 382 Thermal 45 | . . . . . . 45 Explosive 270 | . . . . 247 . 23 Electromagnetic 50 | 15 35 . . . . . Impact 948 | . . . . . . 948 Slashing . | . . . . . . . Piercing . | . . . . . . . Highest Corruption 6 | . . . . . . 6 Average Corruption 4 | . . . . . . 4 Corruption Purged . | . . . . . . . Corruption Blocked . | . . . . . . . Effects 3 | . . . . . . 3 Message Errors 1 | . . . . . . 1 Matter Fused 2 | . . . . . . 2 Overload Shots . | . . . . . . . Overflow Damage 409 | . . . . . . 409 Projectiles . | . . . . . . . Explosions . | . . . . . . . Melee 409 | . . . . . . 409 Knockbacks 3 | . . . . . . 3 Impact 3 | . . . . . . 3 Kinetic . | . . . . . . . Secondary . | . . . . . . . Self-Inflicted Damage 82 | . . . . 69 . 13 Shots 3 | . . . . 2 . 1 Rammed . | . . . . . . . Targets Rammed . | . . . . . . . Kicked . | . . . . . . . Crushed . | . . . . . . . Highest Temperature 76 | 20 76 . . 40 24 20 Average Temperature 13 | 15 31 . . 13 11 6 Received Heat Transfer 535 | . 165 . . 139 . 231 Siege Activations . | . . . . . . . Robots Corrupted 6 | . . . . . . 6 Combat Hostiles 6 | . . . . . . 6 Parts Fried 3 | . . . . . . 3 Impact Corruptions 16 | . . . . . . 16 Robots Melted . | . . . . . . . Combat Hostiles . | . . . . . . . Parts Melted . | . . . . . . . Heat Transferred 74 | . . . . . . 74 Parts Sabotaged . | . . . . . . . Parts Stolen . | . . . . . . . Parts Stripped . | . . . . . . . Power Chain Reactions . | . . . . . . . Alert | -11 -10 -10 -10 -9 -8 -7 ------- Run | Yrd Mat Min Exi Min Mat Fac Peak Influence 150 | 5 86 25 . 72 76 150 Initial 30 | . 3 25 . . 9 30 Average 46 | 1 39 25 . 37 43 58 Maximum Alert Level . | . . . . . . . Low Security (%) 100 | 100 100 100 . 100 100 100 Level 1 . | . . . . . . . Level 2 . | . . . . . . . Level 3 . | . . . . . . . Level 4 . | . . . . . . . Level 5 . | . . . . . . . High Security . | . . . . . . . Max Security . | . . . . . . . Squads Dispatched 9 | . . . . . 6 3 Investigation 2 | . . . . . 1 1 Extermination 2 | . . . . . . 2 Reinforcement 3 | . . . . . 3 . Assault . | . . . . . . . Garrison 2 | . . . . . 2 . Intercept . | . . . . . . . Searches Triggered . | . . . . . . . Construction Impeded . | . . . . . . . Haulers Reinforced . | . . . . . . . Active Scanning Responses . | . . . . . . . Cargo Convoy Interrupts 1 | . . . . . . 1 Stealth | -11 -10 -10 -10 -9 -8 -7 --------- Run | Yrd Mat Min Exi Min Mat Fac Distress Signals 7 | . . . . 4 2 1 Communications Jammed . | . . . . . . . Distress Signals . | . . . . . . . Times Spotted 39 | . 7 . . 11 3 18 Peak Tracking Total 9 | . 3 . . 2 9 5 Tactical Retreats 4 | . 1 . . 1 2 . Traps | -11 -10 -10 -10 -9 -8 -7 ------- Run | Yrd Mat Min Exi Min Mat Fac Traps Triggered 1 | . . . . . . 1 Indirectly . | . . . . . . . Trap Hack Attempts . | . . . . . . . Triggered . | . . . . . . . Disarmed . | . . . . . . . Reprogrammed . | . . . . . . . Reused . | . . . . . . . Traps Extracted . | . . . . . . . Installed . | . . . . . . . Triggered 2 | . . . . . . 2 Machines | -11 -10 -10 -10 -9 -8 -7 ---------- Run | Yrd Mat Min Exi Min Mat Fac Machines Disabled 1 | . . . . . . 1 Max in Single Turn 1 | . . . . . . 1 Garrison Access 2 | . . . . . . 2 Machines Repaired . | . . . . . . . Machines Dismantled . | . . . . . . . Machines Sabotaged . | . . . . . . . Overloaded Fab Kills . | . . . . . . . Hacking | -11 -10 -10 -10 -9 -8 -7 --------- Run | Yrd Mat Min Exi Min Mat Fac Machines Accessed 14 | . 1 . 5 1 2 5 Terminals 5 | . 1 . . 1 2 1 Fabricators 1 | . . . . . . 1 Repair Stations . | . . . . . . . Recycling Units . | . . . . . . . Scanalyzers . | . . . . . . . Garrison Access 3 | . . . . . . 3 Total Hacks 68 | . 2 . 50 3 4 9 Successful 59 | . 1 . 50 3 2 3 Failed 9 | . 1 . . . 2 6 Catastrophic 3 | . . . . . . 3 Database Lockouts . | . . . . . . . Manual 5 | . 2 . 1 . 1 1 Terminals 10 | . 2 . . 3 4 1 Fabricators 1 | . . . . . . 1 Repair Stations . | . . . . . . . Recycling Units . | . . . . . . . Scanalyzers . | . . . . . . . Garrison Access 7 | . . . . . . 7 Terminal Hacks 55 | . . . 50 3 2 . Record 51 | . . . 49 2 . . Alert Level 1 | . . . . . 1 . Unreport Threat 1 | . . . . . 1 . Zone Layout 1 | . . . . 1 . . Derelict Proto ID Bank 1 | . . . 1 . . . Fabricator Hacks 1 | . . . . . . 1 Build 1 | . . . . . . 1 Repair Station Hacks . | . . . . . . . Recycling Unit Hacks . | . . . . . . . Scanalyzer . | . . . . . . . Garrison Access Hacks 2 | . . . . . . 2 Seal Access 2 | . . . . . . 2 Unauthorized Hacks 1 | . 1 . . . . . Terminals 1 | . 1 . . . . . Operators 1 | . 1 . . . . . Fabricators . | . . . . . . . Repair Stations . | . . . . . . . Recycling Units . | . . . . . . . Scanalyzers . | . . . . . . . Garrison Access . | . . . . . . . Data Cores Recovered . | . . . . . . . Used . | . . . . . . . Hacking Detections 6 | . 1 . . 1 1 3 Full Trace Events 3 | . . . . 1 1 1 Feedback Events . | . . . . . . . Feedback Blocked . | . . . . . . . Robot Schematics Acquired . | . . . . . . . Robots Built . | . . . . . . . Authchips . | . . . . . . . Time . | . . . . . . . Total Robot Build Rating . | . . . . . . . Part Schematics Acquired . | . . . . . . . Parts Built 2 | . . . . . . 2 Authchips . | . . . . . . . Time 42 | . . . . . . 42 Total Part Build Rating 8 | . . . . . . 8 Parts Repaired . | . . . . . . . Time . | . . . . . . . Parts Recycled . | . . . . . . . Recycled Matter . | . . . . . . . Retrieved Matter . | . . . . . . . Retrieved Components . | . . . . . . . Parts Scanalyzed . | . . . . . . . Part Schematics Acquired . | . . . . . . . Parts Damaged . | . . . . . . . Bothacking | -11 -10 -10 -10 -9 -8 -7 ------------ Run | Yrd Mat Min Exi Min Mat Fac Used RIF Installer . | . . . . . . . Robots Hacked 3 | . . . 1 . . 2 Non-combat 2 | . . . 1 . . 1 Combat 1 | . . . . . . 1 Robot Hacks Applied 3 | . . . 1 . . 2 parse_system 3 | . . . 1 . . 2 Relay Couplers Released . | . . . . . . . Fabnet Peak Effective % . | . . . . . . . Robots Rewired . | . . . . . . . Allies Hacked . | . . . . . . . Hacks Repelled . | . . . . . . . Allies | -11 -10 -10 -10 -9 -8 -7 -------- Run | Yrd Mat Min Exi Min Mat Fac Total Allies . | . . . . . . . Largest Group . | . . . . . . . Highest-Rated Group . | . . . . . . . Highest-Rated Ally . | . . . . . . . Total Orders . | . . . . . . . Ally Attacks . | . . . . . . . Total Damage . | . . . . . . . Kills . | . . . . . . . Allies Corrupted . | . . . . . . . Allies Melted . | . . . . . . . Intel | -11 -10 -10 -10 -9 -8 -7 ------- Run | Yrd Mat Min Exi Min Mat Fac Robot Analysis Total . | . . . . . . . Derelict Logs Recovered 1 | . . . . 1 . . Drone Launches . | . . . . . . . Drone Recoveries . | . . . . . . . Exploration | -11 -10 -10 -10 -9 -8 -7 ------------- Run | Yrd Mat Min Exi Min Mat Fac Turns Passed 3188 | 82 227 51 1150 505 206 967 Spaces Moved 2433 | 46 109 32 714 245 186 1101 Core 77 | 13 . . . 19 . 45 Treads 953 | 31 109 32 714 67 . . Legs 264 | . . . . 159 . 105 Wheels 2 | 2 . . . . . . Hover . | . . . . . . . Flight 1137 | . . . . . 186 951 Fastest Speed 31 | 50 160 160 160 120 50 31 Average Speed 109 | 125 160 160 160 186 50 62 Slowest Speed 300 | 160 160 160 160 300 150 275 Overloaded Moves . | . . . . . . . Propulsion Burnouts . | . . . . . . . Robots Hopped . | . . . . . . . Cave-ins Triggered . | . . . . . . . Exploration Rate (%) 36 | 4 33 19 92 58 20 29 Regions Visited 6 Branch Regions 3 Pre-discovered Areas 1 | . . . 1 . . . Known Exits Taken 1 | . . . . . 1 . Unknown Exits Taken 5 | 1 1 1 1 1 . . Scrap Searched 1 | . . . . 1 . . Spaces Dug 2 | . . . . . . 2 Terrain Destroyed 65 | . . . . 50 . 15 Melee 2 | . . . . . . 2 Projectile . | . . . . . . . AOE 63 | . . . . 50 . 13 Terrain Rammed . | . . . . . . . Walls Destroyed . | . . . . . . . Machines Disabled . | . . . . . . . Actions | -11 -10 -10 -10 -9 -8 -7 --------- Run | Yrd Mat Min Exi Min Mat Fac Total 2782 | 67 142 32 720 266 284 1271 Wait 130 | . 11 . . . 66 53 Move 2427 | 45 108 31 713 244 185 1101 Hop . | . . . . . . . Pick Up 37 | 10 4 . 1 . 8 14 Fast Attach 4 | . . . 1 2 . 1 Attach 28 | 8 . 1 . . 4 15 Detach 2 | . . . . . . 2 Swap 19 | 1 . . 3 5 5 5 Drop 15 | 1 . . 1 1 7 5 Fire 85 | 2 19 . . 14 9 41 Melee 35 | . . . 1 . . 34 Ram . | . . . . . . . Kick . | . . . . . . . Crush . | . . . . . . . Escape Stasis . | . . . . . . . Rewire . | . . . . . . . Trap . | . . . . . . . Miscellaneous . | . . . . . . . Route ------- -11/Scrapyard -10/Materials (discovered 2 exits: [*Mat] / [*Min]) -10/Mines -10/Exiles (discovered 2 exits: *Min x2) -9/Mines -8/Materials (discovered 2 exits: *Fac x2) -7/Factory History --------- Turn | Location | Event 2 | -11/Scrapyard | Met Revision 17 17 | -11/Scrapyard | Discovered new exit (range 16) 83 | -11/Scrapyard | Entered Materials 284 | -10/Materials | Discovered new exit (range 9) 289 | -10/Materials | Discovered new exit (range 14) 310 | -10/Materials | Entered Mines 331 | -10/Mines | Build established: Mutant 355 | -10/Mines | Deemed a non-threat by the Exiles lab entrance 355 | -10/Mines | Discovered new exit (range 5) 361 | -10/Mines | Entered Exiles 403 | -10/Exiles | Met 8R-AWN 429 | -10/Exiles | Met EX-HEX 494 | -10/Exiles | Met EX-DEC 512 | -10/Exiles | Learned location of Zion (-6) 609 | -10/Exiles | Discovered new exit (range 14) 721 | -10/Exiles | Visited The Gauntlet 997 | -10/Exiles | Discovered new exit (range 14) 1181 | -10/Exiles | Met EX-BIN 1230 | -10/Exiles | Aligned with FarCom system 1232 | -10/Exiles | Given EX-Vault access code 1310 | -10/Exiles | Opened EX-Vault 1323 | -10/Exiles | Found Flying Fortress v7 1356 | -10/Exiles | Warned to stay clear of 0b10 Research branches 1511 | -10/Exiles | Left Exiles lab with Flying Fortress v7 1511 | -10/Exiles | Entered Mines 1515 | -9/Mines | Met a Derelict bent on vengeance 1721 | -9/Mines | Assembled infested the area 1821 | -9/Mines | Learned location of 1 exit from Materials 1856 | -9/Mines | Core integrity fell below 50% 1978 | -9/Mines | Discovered new exit (range 15) 2016 | -9/Mines | Entered Materials 2016 | -8/Materials | Evolved 4 slots: Propulsion x2, Utility x2 2017 | -8/Materials | Identified exit to Factory 2065 | -8/Materials | Garrison activated, responded to threat 2126 | -8/Materials | Discovered exit to Factory (range 15) 2222 | -8/Materials | Entered Factory 2222 | -7/Factory | Evolved 2 slots: Utility x2 2574 | -7/Factory | Fabricated Transmission Jammer? 2879 | -7/Factory | Core integrity fell below 50% 2902 | -7/Factory | Lost 10 parts (1p5n3u1w) 3109 | -7/Factory | Core integrity fell below 20% 3149 | -7/Factory | Cargo convoy interrupted 3189 | -7/Factory | Destroyed by Y-54 Guardian with Gatling Laser Last Messages --------------- Destroyed Target Analyzer. P-60 Hacker system corrupted by crushing effect. P-60 Hacker misfires. P-60 Hacker suffers critical hit (Smash). Destroyed Imp. Heat Sink. P-60 Hacker system corrupted by crushing effect. Destroyed Gravmag System. Destroyed Mic. Nuclear Core. P-60 Hacker system corrupted by crushing effect. P-60 Hacker system terminally corrupted. Acquired 27 matter. IGE::AC7PKXJE4SPY%UG 6 A5Z8M9 |S1 ALERT: Cargo convoy interrupted, initiating access lockdown. Power Maul destroyed. Hvy. Laser destroyed. Ion Engine destroyed. System corrupted: Matter fused (-10). Sml. Storage Unit destroyed. Map ----- +----------------------------------------------------+ | ???# #???????????????????????? | | ???# #???????????????????????? | | ???# #???????????????????????? | | ???# #???????????????????????? | | ???# #???????????????????????? | | ???# #???????????????????????? | | ???# #???????????????????????? | | ???# #???????????????????????? | | ???# #???????????????????????? | | ???# #???????????????????????? | | ???# #???????????????????????? | | ???# #?? ?????????????????? | | ???# #?? ???????????????? | | ???# #?? ??????????????? | | ???# #?? ???????????????? | | ???# #?? ????????????????? | | ???# #?? ????????????????? | | ???# #?? ?????????????????? | | ???# #?# #?????????????????? | | ???# #?# #?????????????????? | | ???# #?# #?????????????????? | | ???# #?# ###???????????????? | | ???# ### #???????????????? | | ???# ## #???????????????? | | ???# # ##???????????????? | | ???# @ Y #???????????????? | | ???### ##???????????????? | | ?????? #???????????????? | | ??????# ###???????????????? | | ??????? # ##?????????????????? | | ????????# #??????????????????? | | ????????? #??????????????????? | | ??????????#??????????????????? | | ?????????????????????????????? | | ?????????????????????????????? | | ?????????????????????????????? | | ?????????????????????????????? | | ?????????????????????????????? | | ?????????????????????????????? | | ?????????????????????????????? | | ?????????????????????????????? | | ?????????????????????????????? | | ?????????????????????????????? | | ?????????????????????????????? | | ?????????????????????????????? | | ?????????????????????????????? | | ?????????????????????????????? | | ?????????????????????????????? | | ?????????????????????????????? | | ?????????????????????????????? | +----------------------------------------------------+ Best States ------------- Heat Dissipation 34 Energy Generation 14 Energy Capacity 250 Matter Stores 300 Matter Capacity 300 Sight Range 16 Terrain Scan Density 10 Evasion (%) 71 Recoil Reduction 2 Item Schematics ----------------- None Robot Schematics ------------------ None Fabricated ------------ Transmission Jammer | x2 | -7/Factory | Preloaded Alien Tech Used ----------------- None Achievements -------------- Everything Is Under Control I Survived The Infestation Just What I Needed Librarian Made in Tau Ceti IV Power Corrupts Serviceable Loadout Use The Force Challenges ------------ None Game ------ Seed HeartLightpackAutogun Manual? 0 Play Time 00:35:53 Cumulative 1.7 hours Start 2025.05.04 @ 18:47:08 End 2025.05.04 @ 19:20:36 Sessions 1 Manual Loads 0 Difficulty Rogue Special Mode None Game No. 8 Rogue 8 Adventurer 0 Explorer 0 Win Type - Total 0 Types 0/0/0/0/0/0/0/0/0 Lore% 8 Gallery% 6 Achievement% 9 Wizard Run 0 Options --------- Layout 1 ASCII 0 Keyboard 0 Movement Mouse Keybinds 0 Fullscreen 1 Font 24/Smallcaps Map View 50x35 Zoom Use 0% Tactical HUD 0 Map Filters NONE Filters NONE Steam 1 RUN: 84dd604e-10fa-41ee-9c69-c23e87ec1ffa